{"text_format":"1","workbook":"xlsx","n_sheets":32,"sheets":["RESULTS","SITE_ID_TOOL","HASH_KEYS","DATA_CHECKING_RULES","DATA_FILE_FORMAT","OSPP_RECORD","OSPP_ORG","REFERRAL_TYPE","ELIGIBILITY_OUTCOME","REFERRAL_SOURCE","MAIN_SPOKEN_LANGUAGE","GENDER","SEXUAL_ORIENTATION","ETHNICITY","WORK_STATUS","STUDENT_STATUS","FAMILY_INCOME","HEALTH_STATUS","SESSION_TYPE","SESSION_ATTENDANCE","TRIAGE_SERVICE_RECOMMENDATION","TRIAGE_DECISION_REASON","MAIN_PROBROM_DESCRIPTOR","OSPP_SERVICE","SERVICE_DELIVERY_TYPE","LING_CULT_SERVICE","TREAT_MODEL_TYPE","CLIENT_HOLD_TYPE","CLIENT_HOLD_STAGE","CLIENT_EXIT_STAGE","EXIT_DISPOSITION","INELIGIBLE_REASON"],"not_rendered":{"charts":0,"images":0,"macros":1,"external_links":0,"defined_names":5,"comments":0,"pivot_tables":0},"unopened":[],"bounds":{"document_bytes":16777216,"sheet_cells":100000,"rows_first":2000,"rows_last":500,"rows_between":2000,"halvings":0,"cell_chars":16384,"cell_head_chars":4096},"cells_cut":0,"cells_raw":0,"read":"whole","date_system":"1900"}

{"sheet":"RESULTS","index":0,"n_rows":0,"n_cols":0,"rows_kept":0,"cut":false,"hidden":false,"merged":[]}

{"sheet":"SITE_ID_TOOL","index":1,"n_rows":100,"n_cols":4,"rows_kept":100,"cut":false,"hidden":false,"merged":[]}
["Assigned SDS ID","SDS Name","Anticipated Date (MM/DD/YYYY) of Service Delivery (if known)","Active"]
[]
[]
[]
[]
[]
[]
[]
[]
[]
[]
[]
[]
[]
[]
[]
[]
[]
[]
[]
[]
[]
[]
[]
[]
[]
[]
[{"$f":"IFERROR(IF(B28<>\"\",132,\"\"),\"\")","v":""},null,null,{"$f":"IFERROR(IF(B28<>\"\",\"Y\",\"\"),\"\")","v":""}]
[{"$f":"IFERROR(IF(B29<>\"\",133,\"\"),\"\")","v":""},null,null,""]
[{"$f":"IFERROR(IF(B30<>\"\",134,\"\"),\"\")","v":""},null,null,""]
[{"$f":"IFERROR(IF(B31<>\"\",135,\"\"),\"\")","v":""},null,null,""]
[{"$f":"IFERROR(IF(B32<>\"\",136,\"\"),\"\")","v":""},null,null,""]
[{"$f":"IFERROR(IF(B33<>\"\",137,\"\"),\"\")","v":""},null,null,""]
[{"$f":"IFERROR(IF(B34<>\"\",138,\"\"),\"\")","v":""},null,null,""]
[{"$f":"IFERROR(IF(B35<>\"\",139,\"\"),\"\")","v":""},null,null,""]
[{"$f":"IFERROR(IF(B36<>\"\",140,\"\"),\"\")","v":""},null,null,""]
[{"$f":"IFERROR(IF(B37<>\"\",141,\"\"),\"\")","v":""},null,null,""]
[{"$f":"IFERROR(IF(B38<>\"\",142,\"\"),\"\")","v":""},null,null,""]
[{"$f":"IFERROR(IF(B39<>\"\",143,\"\"),\"\")","v":""},null,null,""]
[{"$f":"IFERROR(IF(B40<>\"\",144,\"\"),\"\")","v":""},null,null,""]
[{"$f":"IFERROR(IF(B41<>\"\",145,\"\"),\"\")","v":""},null,null,""]
[{"$f":"IFERROR(IF(B42<>\"\",146,\"\"),\"\")","v":""},null,null,""]
[{"$f":"IFERROR(IF(B43<>\"\",147,\"\"),\"\")","v":""},null,null,""]
[{"$f":"IFERROR(IF(B44<>\"\",148,\"\"),\"\")","v":""},null,null,""]
[{"$f":"IFERROR(IF(B45<>\"\",149,\"\"),\"\")","v":""},null,null,""]
[{"$f":"IFERROR(IF(B46<>\"\",150,\"\"),\"\")","v":""},null,null,""]
[{"$f":"IFERROR(IF(B47<>\"\",151,\"\"),\"\")","v":""},null,null,""]
[{"$f":"IFERROR(IF(B48<>\"\",152,\"\"),\"\")","v":""},null,null,""]
[{"$f":"IFERROR(IF(B49<>\"\",153,\"\"),\"\")","v":""},null,null,""]
[{"$f":"IFERROR(IF(B50<>\"\",154,\"\"),\"\")","v":""},null,null,""]
[{"$f":"IFERROR(IF(B51<>\"\",155,\"\"),\"\")","v":""},null,null,""]
[{"$f":"IFERROR(IF(B52<>\"\",156,\"\"),\"\")","v":""},null,null,""]
[{"$f":"IFERROR(IF(B53<>\"\",157,\"\"),\"\")","v":""},null,null,""]
[{"$f":"IFERROR(IF(B54<>\"\",158,\"\"),\"\")","v":""},null,null,""]
[{"$f":"IFERROR(IF(B55<>\"\",159,\"\"),\"\")","v":""},null,null,""]
[{"$f":"IFERROR(IF(B56<>\"\",160,\"\"),\"\")","v":""},null,null,""]
[{"$f":"IFERROR(IF(B57<>\"\",161,\"\"),\"\")","v":""},null,null,""]
[{"$f":"IFERROR(IF(B58<>\"\",162,\"\"),\"\")","v":""},null,null,""]
[{"$f":"IFERROR(IF(B59<>\"\",163,\"\"),\"\")","v":""},null,null,{"$f":"IFERROR(IF(B59<>\"\",\"Y\",\"\"),\"\")","v":""}]
[{"$f":"IFERROR(IF(B60<>\"\",164,\"\"),\"\")","v":""},null,null,""]
[{"$f":"IFERROR(IF(B61<>\"\",165,\"\"),\"\")","v":""},null,null,""]
[{"$f":"IFERROR(IF(B62<>\"\",166,\"\"),\"\")","v":""},null,null,""]
[{"$f":"IFERROR(IF(B63<>\"\",167,\"\"),\"\")","v":""},null,null,""]
[{"$f":"IFERROR(IF(B64<>\"\",168,\"\"),\"\")","v":""},null,null,""]
[{"$f":"IFERROR(IF(B65<>\"\",169,\"\"),\"\")","v":""},null,null,""]
[{"$f":"IFERROR(IF(B66<>\"\",170,\"\"),\"\")","v":""},null,null,""]
[{"$f":"IFERROR(IF(B67<>\"\",171,\"\"),\"\")","v":""},null,null,""]
[{"$f":"IFERROR(IF(B68<>\"\",172,\"\"),\"\")","v":""},null,null,""]
[{"$f":"IFERROR(IF(B69<>\"\",173,\"\"),\"\")","v":""},null,null,""]
[{"$f":"IFERROR(IF(B70<>\"\",174,\"\"),\"\")","v":""},null,null,""]
[{"$f":"IFERROR(IF(B71<>\"\",175,\"\"),\"\")","v":""},null,null,""]
[{"$f":"IFERROR(IF(B72<>\"\",176,\"\"),\"\")","v":""},null,null,""]
[{"$f":"IFERROR(IF(B73<>\"\",177,\"\"),\"\")","v":""},null,null,""]
[{"$f":"IFERROR(IF(B74<>\"\",178,\"\"),\"\")","v":""},null,null,""]
[{"$f":"IFERROR(IF(B75<>\"\",179,\"\"),\"\")","v":""},null,null,""]
[{"$f":"IFERROR(IF(B76<>\"\",180,\"\"),\"\")","v":""},null,null,""]
[{"$f":"IFERROR(IF(B77<>\"\",181,\"\"),\"\")","v":""},null,null,""]
[{"$f":"IFERROR(IF(B78<>\"\",182,\"\"),\"\")","v":""},null,null,""]
[{"$f":"IFERROR(IF(B79<>\"\",183,\"\"),\"\")","v":""},null,null,""]
[{"$f":"IFERROR(IF(B80<>\"\",184,\"\"),\"\")","v":""},null,null,""]
[{"$f":"IFERROR(IF(B81<>\"\",185,\"\"),\"\")","v":""},null,null,""]
[{"$f":"IFERROR(IF(B82<>\"\",186,\"\"),\"\")","v":""},null,null,""]
[{"$f":"IFERROR(IF(B83<>\"\",187,\"\"),\"\")","v":""},null,null,""]
[{"$f":"IFERROR(IF(B84<>\"\",188,\"\"),\"\")","v":""},null,null,""]
[{"$f":"IFERROR(IF(B85<>\"\",189,\"\"),\"\")","v":""},null,null,""]
[{"$f":"IFERROR(IF(B86<>\"\",190,\"\"),\"\")","v":""},null,null,""]
[{"$f":"IFERROR(IF(B87<>\"\",191,\"\"),\"\")","v":""},null,null,""]
[{"$f":"IFERROR(IF(B88<>\"\",192,\"\"),\"\")","v":""},null,null,""]
[{"$f":"IFERROR(IF(B89<>\"\",193,\"\"),\"\")","v":""},null,null,""]
[{"$f":"IFERROR(IF(B90<>\"\",194,\"\"),\"\")","v":""},null,null,""]
[{"$f":"IFERROR(IF(B91<>\"\",195,\"\"),\"\")","v":""},null,null,{"$f":"IFERROR(IF(B91<>\"\",\"Y\",\"\"),\"\")","v":""}]
[{"$f":"IFERROR(IF(B92<>\"\",196,\"\"),\"\")","v":""},null,null,""]
[{"$f":"IFERROR(IF(B93<>\"\",197,\"\"),\"\")","v":""},null,null,""]
[{"$f":"IFERROR(IF(B94<>\"\",198,\"\"),\"\")","v":""},null,null,""]
[{"$f":"IFERROR(IF(B95<>\"\",199,\"\"),\"\")","v":""},null,null,""]
[{"$f":"IFERROR(IF(B96<>\"\",200,\"\"),\"\")","v":""},null,null,""]
[{"$f":"IFERROR(IF(B97<>\"\",201,\"\"),\"\")","v":""},null,null,""]
[{"$f":"IFERROR(IF(B98<>\"\",202,\"\"),\"\")","v":""},null,null,""]
[{"$f":"IFERROR(IF(B99<>\"\",203,\"\"),\"\")","v":""},null,null,""]
[{"$f":"IFERROR(IF(B100<>\"\",204,\"\"),\"\")","v":""},null,null,""]

{"sheet":"HASH_KEYS","index":2,"n_rows":1,"n_cols":2,"rows_kept":1,"cut":false,"hidden":false,"merged":[]}
["OHIP_NO","HASH_KEYS"]

{"sheet":"DATA_CHECKING_RULES","index":3,"n_rows":48,"n_cols":9,"rows_kept":48,"cut":false,"hidden":false,"merged":[]}
["Date Format Validation","Numbers Only Validation","ID Lookup Validation","Lookup Table","Multiple Values Validation","Mandatory Fields Validation","Business Rules Validation","Specical Characters (Line breakers)","No Data Validation"]
["REFERRAL_RECEIVED_DATE","PHQ9_REFERRAL_SCORE","ORG_ID","CBT_ORG","GENDER_ID","ORG_ID","REFERRAL_COMPLETED_DATE>=REFERRAL_RECEIVED_DATE *New","ADDRESS","FIRST_NAME"]
["REFERRAL_COMPLETED_DATE","GAD7_REFERRAL_SCORE","REFERRAL_TYPE","REFERRAL_TYPE","ETHNICITY_ID","REFERRAL_RECEIVED_DATE","REFERRAL_RECEIVED_DATE/REFERRAL_COMPLETED_DATE not a future date  *New",null,"LAST_NAME"]
["SCREENING_DATE","YEAR_ARRIVE_IN_CANADA","INITIAL_SCREENING_OUTCOME","INITIAL_SCREENING_OUTCOME","HEALTH_STATUS","DATE_OF_BIRTH *New","Screening_Date>=Referral_Completed_Date  *New",null,"CITY"]
["DATE_OF_BIRTH","NO_PEOPLE_INCOME_SUPPORTED","REFERRAL_SOURCE_ID","REFERRAL_SOURCE","CLINICIAN1_ID","Either OHIP_No Or CLIENT_ID not null","Age>=5 and Age<=120 *New",null,"POSTAL_CODE"]
["SESSION_DATE","SESSION_DURATION","REFERRAL_ORG_ID","CBT_ORG","TRIAGE_DECISION_REASON",null,"Session_Date>=Screening_Date  * New",null,"OHIP_BILLING_NO"]
["ENROLLMENT_DATE","PHQ9_ASSESSMENT_SCORE","FRANCOPHONE_REF_ID","FRANCOPHONE","SERVICE_DELIVERY_TYPE_ID",null,"Enrollment_Date<=Treatment_Start_Date *New",null,"INCOMING_REQUEST_ID"]
["TREATMENT_START_DATE","GAD7_ASSESSMENT_SCORE","SERVICES_IN_FRENCH_REQUIRED","N/A","INELIGIBLE_REASON",null,"Exit_Date>=Session_Date *New",null,"MAIN_SPOKEN_LANGUAGE_OTHER"]
["TREATMENT_COMPLETION_DATE","WHODAS_ASSESSMENT_SCORE","MAIN_SPOKEN_LANGUAGE","MAIN_SPOKEN_LANGUAGE",null,null,"Treatment_Start_Date<=Treatment_Complettion_Date *New",null,"OUTGOING_REQUEST_ID"]
["CLIENT_HOLD_START_DATE","SHAI_SW_SCALE_ASSESSMENT_SCORE","INTERPRETER_REQUIRED","N/A"]
["CLIENT_HOLD_END_DATE","OCD_SCALE_ASSESSMENT_SCORE","GENDER_ID","GENDER"]
["EXIT_DATE","PDSS_SR_SCALE_ASSESSMENT_SCORE","SEXUAL_ORIENTATION_ID","SEX_ORIENTATION"]
["REQUEST_MADE_DATE","PCL5_SCALE_ASSESSMENT_SCORE","ETHNICITY_ID","ETHNICITY"]
["CLIENT_HOLD_START_DATE1 *New","SPIN_SCALE_ASSESSMENT_SCORE","WORK_STATUS_ID","WORK_STATUS"]
["CLIENT_HOLD_START_DATE2 *New","AUDIT_C_ASSESSMENT_SCORE","STUDENT_STATUS_ID","STUDENT_STATUS"]
["CLIENT_HOLD_START_DATE3 *New","DUDIT_ASSESSMENT_SCORE","BORN_IN_CANADA","N/A"]
["CLIENT_HOLD_START_DATE4 *New","PSWQ_ASSESSMENT_SCORE","FAMILY_INCOME_ID","FAMILY_INCOME"]
["CLIENT_HOLD_START_DATE5 *New","PHQ9_TREATMENT_SCORE","HEALTH_STATUS","HEALTH_STATUS_REF"]
["CLIENT_HOLD_START_DATE6 *New","GAD7_TREATMENT_SCORE","PRIOR_MH_COUNSELLING_REF_ID","N/A"]
["CLIENT_HOLD_END_DATE1 *New","WSAS_TREATMENT_SCORE","SESSION_TYPE_ID","SESSION_TYPE"]
["CLIENT_HOLD_END_DATE2 *New","SHAI_SW_SCALE_TREATMENT_SCORE","SESSION_ATTENDANCE_ID","SESSION_ATTENDANCE"]
["CLIENT_HOLD_END_DATE3 *New","OCD_SCALE_TREATMENT_SCORE","TRIAGE_SERVICE_RECOMMENDATION","TRIAGE_SERVICE_RECOMM"]
["CLIENT_HOLD_END_DATE4 *New","PDSS_SR_SCALE_TREATMENT_SCORE","TRIAGE_DECISION_REASON","TRIAGE_DECISION_REASON"]
["CLIENT_HOLD_END_DATE5 *New","PCL5_SCALE_TREATMENT_SCORE","MAIN_PROBLEM_DESCRIPTOR_ASSESSMENT_ID","MAIN_PROBLEM_DESCRIPTOR"]
["CLIENT_HOLD_END_DATE6 *New","SPIN_SCALE_TREATMENT_SCORE","SITE_ID","CBT_ORG"]
[null,"AUDIT_C_TREATMENT_SCORE","MINDABILITY_SERVICE_ID","MINDABILITY_SERVICE"]
[null,"DUDIT_TREATMENT_SCORE","SERVICE_DELIVERY_TYPE_ID","SERVICE_DELIVERY_TYPE"]
[null,"PSWQ_TREATMENT_SCORE","LING_CULT_SERVICE_ID","LING_CULT_SERVICE"]
[null,"PSWQ_PW_TREATMENT_SCORE","MAIN_PROBLEM_DESCRIPTOR_TREATMENT_ID","MAIN_PROBLEM_DESCRIPTOR"]
[null,null,"TREATMENT_MODEL_TYPE","TREATMENT_MODEL_TYPE"]
[null,"HIST_REFERRAL_MADE * Historical","CLIENT_HOLD_TYPE","CLIENT_HOLD_TYPE"]
[null,"HIST_TREATMENT_CYCLE * Historical","CLIENT_HOLD_STAGE","CLIENT_HOLD_STAGE"]
[null,"HIST_MIA_SCALE_SCORE * Historical","CLIENT_EXIT_STAGE_ID","CLIENT_EXIT_STAGE"]
[null,"HIST_HAI_SW_SCALE_SCORE * Historical","EXIT_DISPOSITION_ID","EXIT_DISPOSITION"]
[null,"HIST_SPQ_SCALE_SCORE * Historical","INELIGIBLE_REASON","INELIGIBLE_REASON"]
[null,"HIST_SPQ_ADULT_SCALE_SCORE * Historical","REQUEST_MADE","CBT_ORG"]
[null,null,"CLIENT_HOLD_TYPE1 *New"]
[null,null,"CLIENT_HOLD_TYPE2 *New"]
[null,null,"CLIENT_HOLD_TYPE3 *New"]
[null,null,"CLIENT_HOLD_TYPE4 *New"]
[null,null,"CLIENT_HOLD_TYPE5 *New"]
[null,null,"CLIENT_HOLD_TYPE6 *New"]
[null,null,"CLIENT_HOLD_STAGE1 *New"]
[null,null,"CLIENT_HOLD_STAGE2 *New"]
[null,null,"CLIENT_HOLD_STAGE3 *New"]
[null,null,"CLIENT_HOLD_STAGE4 *New"]
[null,null,"CLIENT_HOLD_STAGE5 *New"]
[null,null,"CLIENT_HOLD_STAGE6 *New"]

{"sheet":"DATA_FILE_FORMAT","index":4,"n_rows":16,"n_cols":114,"rows_kept":16,"cut":false,"hidden":false,"merged":[[5,0,5,6]]}
[]
["New changes in version v4.16"]
[null,"1. Added new sites and new NLOs to the OSPP_ORG tab."]
[null,"2. Added data valiation for the new session type ID - 6."]
[]
["Please ensure that you have exact column headers as required in your data file. Details of the data specifications can be found in the OSPP_RECORD worksheet. If a data element has no values, please leave it blank. The following is the sample data:"]
[1,{"$f":"A7+1","v":2},{"$f":"B7+1","v":3},{"$f":"C7+1","v":4},5,6,7,8,9,10,11,12,13,14,15,16,17,18,19,20,21,22,23,24,25,26,27,28,29,30,31,32,33,34,35,36,37,38,39,40,41,42,43,44,45,46,47,48,49,50,51,52,53,54,55,56,57,58,59,60,61,62,63,64,65,66,67,{"$f":"BO7+1","v":68},69,70,71,72,73,74,75,76,77,78,79,80,81,82,83,84,85,86,87,88,89,90,91,92,93,94,95,96,97,98,99,100,101,102,103,104,105,106,107,108,109,110,111,112,113,114]
["ROW_ID","ORG_ID","REFERRAL_RECEIVED_DATE","REFERRAL_COMPLETED_DATE","REFERRAL_TYPE","SCREENING_DATE","INITIAL_SCREENING_OUTCOME","OHIP_NO","CLIENT_ID","FIRST_NAME","LAST_NAME","ADDRESS","CITY","POSTAL_CODE","REFERRAL_SOURCE_ID","OHIP_BILLING_NO","PHQ9_REFERRAL_SCORE","GAD7_REFERRAL_SCORE","REFERRAL_ORG_ID","INCOMING_REQUEST_ID","DATE_OF_BIRTH","FRANCOPHONE_REF_ID","SERVICES_IN_FRENCH_REQUIRED","MAIN_SPOKEN_LANGUAGE","MAIN_SPOKEN_LANGUAGE_OTHER","INTERPRETER_REQUIRED","GENDER_ID","SEXUAL_ORIENTATION_ID","ETHNICITY_ID","WORK_STATUS_ID","STUDENT_STATUS_ID","BORN_IN_CANADA","YEAR_ARRIVE_IN_CANADA","FAMILY_INCOME_ID","NO_PEOPLE_INCOME_SUPPORTED","HEALTH_STATUS","PRIOR_MH_COUNSELLING_REF_ID","SESSION_DATE","SESSION_TYPE_ID","SESSION_ATTENDANCE_ID","SESSION_DURATION","CLINICIAN1_ID","TRIAGE_SERVICE_RECOMMENDATION","TRIAGE_DECISION_REASON","PHQ9_ASSESSMENT_SCORE","GAD7_ASSESSMENT_SCORE","WHODAS_ASSESSMENT_SCORE","SHAI_SW_SCALE_ASSESSMENT_SCORE","OCD_SCALE_ASSESSMENT_SCORE","PDSS_SR_SCALE_ASSESSMENT_SCORE","PCL5_SCALE_ASSESSMENT_SCORE","SPIN_SCALE_ASSESSMENT_SCORE","AUDIT_C_ASSESSMENT_SCORE","DUDIT_ASSESSMENT_SCORE","PSWQ_ASSESSMENT_SCORE","MAIN_PROBLEM_DES_ASSESSMENT_ID","ENROLLMENT_DATE","SITE_ID","TREATMENT_START_DATE","MINDABILITY_SERVICE_ID","SERVICE_DELIVERY_TYPE_ID","LING_CULT_SERVICE_ID","PHQ9_TREATMENT_SCORE","GAD7_TREATMENT_SCORE","WSAS_TREATMENT_SCORE","SHAI_SW_SCALE_TREATMENT_SCORE","OCD_SCALE_TREATMENT_SCORE","PDSS_SR_SCALE_TREATMENT_SCORE","PCL5_SCALE_TREATMENT_SCORE","SPIN_SCALE_TREATMENT_SCORE","AUDIT_C_TREATMENT_SCORE","DUDIT_TREATMENT_SCORE","PSWQ_TREATMENT_SCORE","PSWQ_PW_TREATMENT_SCORE","MAIN_PROBLEM_DES_TREATMENT_ID","TREATMENT_MODEL_TYPE","TREATMENT_COMPLETION_DATE","CLIENT_HOLD_TYPE1","CLIENT_HOLD_TYPE2","CLIENT_HOLD_TYPE3","CLIENT_HOLD_TYPE4","CLIENT_HOLD_TYPE5","CLIENT_HOLD_TYPE6","CLIENT_HOLD_STAGE1","CLIENT_HOLD_STAGE2","CLIENT_HOLD_STAGE3","CLIENT_HOLD_STAGE4","CLIENT_HOLD_STAGE5","CLIENT_HOLD_STAGE6","CLIENT_HOLD_START_DATE1","CLIENT_HOLD_START_DATE2","CLIENT_HOLD_START_DATE3","CLIENT_HOLD_START_DATE4","CLIENT_HOLD_START_DATE5","CLIENT_HOLD_START_DATE6","CLIENT_HOLD_END_DATE1","CLIENT_HOLD_END_DATE2","CLIENT_HOLD_END_DATE3","CLIENT_HOLD_END_DATE4","CLIENT_HOLD_END_DATE5","CLIENT_HOLD_END_DATE6","EXIT_DATE","CLIENT_EXIT_STAGE_ID","EXIT_DISPOSITION_ID","INELIGIBLE_REASON","REQUEST_MADE","REQUEST_MADE_DATE","OUTGOING_REQUEST_ID","HIST_REFERRAL_MADE","HIST_TREATMENT_CYCLE","HIST_MIA_SCALE_SCORE","HIST_HAI_SW_SCALE_SCORE","HIST_SPQ_SCALE_SCORE","HIST_SPQ_ADULT_SCALE_SCORE"]
[1,100,20180820,20180820,1,20180820,1,1234567890,1,"John","Doe",null,null,"NFA",1,1,1,1,100,"CAMH_99999",19991212,1,1,1,"Other",1,1,1,1,1,1,1,2001,1,1,1,1,20180820,1,1,10,1,1,1,1,1,1,1,1,1,1,1,1,1,1,1,20191201,101,20191201,1,1,1,1,1,1,1,1,1,1,1,1,1,1,1,1,1,20191201,1,1,1,1,1,1,1,1,1,1,1,1,20191201,20191201,20191201,20191201,20191201,20191201,20191201,20191201,20191201,20191201,20191201,20191201,20191201,1,null,null,null,20191201]
[2,200,20180820,20180820,2,20180820,2,1234567890,1,"John","Doe",null,null,"NFA",2,1,1,1,200,"ROYAL_88888",19600512,1,1,1,"Other",1,"1;2",1,"1;2",2,1,2,2002,2,1,"1;2",1,20180820,1,1,5,"1;2",1,"1;2",1,1,1.1000000000000001,1.1000000000000001,1.1000000000000001,1.1000000000000001,1.1000000000000001,1.1000000000000001,1.1000000000000001,1.1000000000000001,1.1000000000000001,2,20191201,102,20191201,2,"1;2",2,2,2,2,1.1000000000000001,1.1000000000000001,1.1000000000000001,1.1000000000000001,1.1000000000000001,1.1000000000000001,1.1000000000000001,1.1000000000000001,1.1000000000000001,2,2,20191201,2,2,2,2,2,2,2,2,2,2,2,2,20191201,20191201,20191201,20191201,20191201,20191201,20191201,20191201,20191201,20191201,20191201,20191201,20191201,2,null,null,null,20191201]
[3,300,20190801,20190801,3,20190801,1,1234567890,2,"John","Doe",null,null,"NFA",1,1,1,1,300,"OS_77777",19991212,1,1,1,"Other",1,"1;2;3",2,"1;2;3",3,1,1,2003,1,1,"1;2;3",1,20190801,1,1,20,"1;2",1,"1;2",1,1,1.2,1.2,1.2,1.2,1.2,1.2,1.2,1.2,1.2,1,20191201,201,20191201,1,"1;2",1,1,1,1,1.2,1.2,1.2,1.2,1.2,1.2,1.2,1.2,1.2,1,1,20191201,1,1,1,1,1,1,1,1,1,1,1,1,20191201,20191201,20191201,20191201,20191201,20191201,20191201,20191201,20191201,20191201,20191201,20191201,20191201,3,null,null,null,20191201]
[4,400,20190101,20190101,4,20190101,2,1234567890,1,"Mary","Suto",null,null,"UNK",2,77,2,2,100,"CAMH_99999",19600512,2,2,2,"Other",2,"1;2;3;4",1,"1;2;3;4",4,2,2,2004,2,2,"1;2;3;4",2,20190101,2,2,30,"1;2",2,"1;2",2,2,1.3,1.3,1.3,1.3,1.3,1.3,1.3,1.3,1.3,2,20191201,202,20191201,2,"1;2",2,2,2,2,1.3,1.3,1.3,1.3,1.3,1.3,1.3,1.3,1.3,2,2,20191201,2,2,2,2,2,2,2,2,2,2,2,2,20191201,20191201,20191201,20191201,20191201,20191201,20191201,20191201,20191201,20191201,20191201,20191201,20191201,4,null,null,null,20191201]
[5,500,20190101,20190101,5,20190101,1,1234567890,2,"Mary","Suto",null,null,"UNK",1,77,2,2,500,"ROYAL_88888",19991212,2,2,2,"Other",2,"1;2;3;4;5",2,"1;2;3;4;5",5,2,1,2005,1,2,"1;2;3;4;5",2,20190101,2,2,40,"1;2",2,"1;2",2,2,1.4,1.4,1.4,1.4,1.4,1.4,1.4,1.4,1.4,1,20191201,305,20191201,1,"1;2",1,1,1,1,1.4,1.4,1.4,1.4,1.4,1.4,1.4,1.4,1.4,1,1,20191201,1,1,1,1,1,1,1,1,1,1,1,1,20191201,20191201,20191201,20191201,20191201,20191201,20191201,20191201,20191201,20191201,20191201,20191201,20191201,1,null,null,null,20191201]
[6,500,20190101,20190101,1,20190101,1,1234567890,1,"Mary","Suto",null,null,"UNK",2,77,2,2,200,"OS_77777",19600512,2,2,2,"Other",2,2,3,2,1,2,2,2006,2,2,2,2,20190101,2,2,50,"1;2",2,"1;2",2,2,1.5,1.5,1.5,1.5,1.5,1.5,1.5,1.5,1.5,2,20191201,406,20191201,2,"1;2",2,2,2,2,1.5,1.5,1.5,1.5,1.5,1.5,1.5,1.5,1.5,2,2,20191201,2,2,2,2,2,2,2,2,2,2,2,2,20191201,20191201,20191201,20191201,20191201,20191201,20191201,20191201,20191201,20191201,20191201,20191201,20191201,2,null,null,null,20191201]
[7,100,20190101,20190101,1,20190101,1,1234567890,2,"Mary","Suto",null,null,"UNK",1,77,2,2,400,"WP_66666",19991212,2,2,2,"Other",2,2,4,2,2,2,1,2007,1,2,2,2,20190101,2,2,70,"1;2",2,"1;2",2,2,1.6,1.6,1.6,1.6,1.6,1.6,1.6,1.6,1.6,1,20191201,500,20191201,1,"1;2",1,1,1,1,1.6,1.6,1.6,1.6,1.6,1.6,1.6,1.6,1.6,1,1,20191201,1,1,1,1,1,1,1,1,1,1,1,1,20191201,20191201,20191201,20191201,20191201,20191201,20191201,20191201,20191201,20191201,20191201,20191201,20191201,3,null,null,null,20191201]
[8,100,20190101,20190101,1,20190101,1,1234567890,1,"Mary","Suto",null,null,"UNK",2,77,2,2,100,"CAMH_12345",19600512,2,2,2,"Other",2,2,5,2,3,2,2,2008,2,2,2,2,20190101,2,2,100,"1;2",2,"1;2",2,2,1.7,1.7,1.7,1.7,1.7,1.7,1.7,1.7,1.7,2,20191201,412,20191201,2,"1;2",2,2,2,2,1.7,1.7,1.7,1.7,1.7,1.7,1.7,1.7,1.7,2,2,20191201,2,2,2,2,2,2,2,2,2,2,2,2,20191201,20191201,20191201,20191201,20191201,20191201,20191201,20191201,20191201,20191201,20191201,20191201,20191201,4,null,null,null,20191201]

{"sheet":"OSPP_RECORD","index":5,"n_rows":115,"n_cols":4,"rows_kept":115,"cut":false,"hidden":false,"merged":[]}
["#","Data Element","Database Table Column Name","Note"]
[1,"Row Identifier","ROW_ID","Numeric - use it for data validation"]
[{"$f":"A2+1","v":2},"Network Lead Organization","ORG_ID","Single value, please select one from the OSPP_ORG table. E.g. the ORG_ID for CAMH is 100 "]
[{"$f":"A3+1","v":3},"Date referral / Service Request received ","REFERRAL_RECEIVED_DATE","The data format is YYYYMMDD"]
[4,"Date referral/ Service Request completed","REFERRAL_COMPLETED_DATE","The data format is YYYYMMDD"]
[5,"Referral Type","REFERRAL_TYPE","Single value, please select one from the REFERRAL_TYPE table. E.g. the REFERRAL_TYPE_ID is 1 for (1) Referral to OSP Program"]
[6,"Screening for eligibility date","SCREENING_DATE","The data format is YYYYMMDD"]
[7,"Outcome of eligibility screen","INITIAL_SCREENING_OUTCOME","Single value, please select one from the ELIGIBILITY_OUTCOME table. E.g. the INITIAL_SCREENING_OUTCOME is 1 for (1) Eligible for Clinical Intake and Triage Assessment or Mental Health Assessment"]
[8,"OHIP #","OHIP_NO","10-digit health card number.OHIP_NO with spaces/special characters/letters will be accepted and transformed to 10 digits prior to being uploaded into the OSP database; if the OHIP_NO submitted is greater than 10 digits, only the first 10 digits will be kept."]
[9,"Unique Client ID ","CLIENT_ID","Enter unique client identifier used by agency when OHIP # is not available"]
[10,"Client First Name","FIRST_NAME","Text"]
[11,"Client Last Name","LAST_NAME","Text"]
[12,"Address","ADDRESS","Text"]
[13,"City","CITY","Text"]
[14,"Postal Code","POSTAL_CODE","The format is AnAnAn without spaces in between. Please enter NFA for no fixed address; UNK for address is unknown. First three digits of postal code (ONLY for client referrals pending consent)"]
[15,"Referral Source Type","REFERRAL_SOURCE_ID","Single value, please select one from the REFERRAL_SOURCE table. E.g. the REFERRAL_SOURCE_ID is 1 for Family physician"]
[16,"OHIP billing number","OHIP_BILLING_NO","Numeric"]
[17,"PHQ-9 referral score","PHQ9_REFERRAL_SCORE","Numeric"]
[18,"GAD-7 referral score","GAD7_REFERRAL_SCORE","Numeric"]
[19,"Referral Source NLO- OSPP Service Requests","REFERRAL_ORG_ID","Single value, please select one from the OSPP_ORG table. E.g. the ORG_ID for CAMH is 100 "]
[20,"Service Request ID- Incoming","INCOMING_REQUEST_ID","TEXT, the data format is OrgID_SiteID_XXXXXX (e.g. 100_101_123456)"]
[21,"Date of Birth","DATE_OF_BIRTH","The data format is YYYYMMDD"]
[22,"Francophone","FRANCOPHONE_REF_ID","Single value, please enter 1 for Yes; 2 for No; 88 for Prefer not to answer; 99 for Do not know"]
[23,"Requires French language services","SERVICES_IN_FRENCH_REQUIRED","Single value, please enter 1 for Yes; 2 for No"]
[24,"Main spoken language","MAIN_SPOKEN_LANGUAGE","Single value, please select one from the Main spoken language table. E.g. the MAIN_SPOKEN_LANGUAGE is 9 for English"]
[25,"Main spoken language - Other","MAIN_SPOKEN_LANGUAGE_OTHER","Text, Complete only if Main Spoken Language = \"(77) Other, none of the above\""]
[26,"Interpreter required","INTERPRETER_REQUIRED","Single value, please enter 1 for Yes; 2 for No"]
[27,"Gender","GENDER_ID","If multiple values are selected for the data element “Gender”,  each value needs to be separated with a delimiter semi-colon “;” (e.g. 1;2;3) and no spaces are allowed in between."]
[28,"Sexual Orientation","SEXUAL_ORIENTATION_ID","Single value, please select one from the SEX_ORIENTATION table. E.g. the SEX_ORIENTATION_ID is 1 for Bisexual"]
[29,"Racial/ethnic group","ETHNICITY_ID","If multiple values are selected for the data element “Racial/ethnic group”,  each value needs to be separated with a delimiter semi-colon “;” and no spaces are allowed in between. (e.g. 1;16)"]
[30,"Work status","WORK_STATUS_ID","Single value, please select one from the WORK_STATUS table. E.g. the WORK_STATUS_ID is 1 for Employed full-time"]
[31,"Student status","STUDENT_STATUS_ID","Single value, please select one from the STUDENT_STATUS table. E.g. the STUDENT_STATUS_ID is 1 for Full-time student"]
[32,"Was client born in Canada?","BORN_IN_CANADA","Single value, please enter 1 for Yes; 2 for No; 88 for Prefer not to answer; 99 for Do not know"]
[33,"If no, what year did client arrive in Canada?","YEAR_ARRIVE_IN_CANADA","Numeric - Year (YYYY)"]
[34,"Family income","FAMILY_INCOME_ID","Single value, please select one from the FAMILY_INCOME table. E.g. the FAMILY_INCOME_ID is 1 for Client’s total family income below $30,000"]
[35,"How many people does this income support?","NO_PEOPLE_INCOME_SUPPORTED","Numeric, if client does not know the response, record “99”."]
[36,"Health status","HEALTH_STATUS","If multiple values are selected for the data element “Health status”,  each value needs to be separated with a delimiter semi-colon “;” and no spaces are allowed in between. (e.g. 1;2;3)"]
[37,"Prior mental health counselling","PRIOR_MH_COUNSELLING_REF_ID","Single value, please enter 1 for Yes; 2 for No; 88 for Prefer not to answer; 99 for Do not know"]
[38,"Session date","SESSION_DATE","The data format is YYYYMMDD"]
[39,"Session type","SESSION_TYPE_ID","Single value, please select one from the SESSION_TYPE table. E.g. the SESSION_TYPE_ID is 1 for Mental health assessment"]
[40,"Session attendance","SESSION_ATTENDANCE_ID","Single value, please select one from the SESSION_ATTENDANCE table. E.g. the SESSION_ATTENDANCE_ID is 1 for Held- Session was held"]
[41,"Duration of session","SESSION_DURATION","Numeric"]
[42,"Provider ID","CLINICIAN1_ID","Text, if multiple clinician or service provider IDs are recorded for each session attended by client, each value needs to be separated with a delimiter semi-colon “;” and no spaces are allowed in between. (e.g. 1;2;3)"]
[43,"Triage Assesment -service recommendation","TRIAGE_SERVICE_RECOMMENDATION","Single value, please select one from the TRIAGE_SERVICE_RECOMMENDATION table. E.g. 1 for Higher intensity service."]
[44,"Triage Assesment - Reason for decision","TRIAGE_DECISION_REASON","If multiple values are needed for the data element “Reason for triage decision”,  each value needs to be separated with a delimiter semi-colon “;” and no spaces are allowed in between. (e.g. 1;2;3)"]
[45,"PHQ-9 score (ASSESSMENT)","PHQ9_ASSESSMENT_SCORE","Numeric"]
[46,"GAD-7 score (ASSESSMENT)","GAD7_ASSESSMENT_SCORE","Numeric"]
[47,"WHODAS score (ASSESSMENT)","WHODAS_ASSESSMENT_SCORE","Numeric"]
[48,"SHAI scale score (ASSESSMENT)","SHAI_SW_SCALE_ASSESSMENT_SCORE","Numeric"]
[49,"OCI-R scale score (ASSESSMENT)","OCD_SCALE_ASSESSMENT_SCORE","Numeric"]
[50,"PDSS-SR scale score (ASSESSMENT)","PDSS_SR_SCALE_ASSESSMENT_SCORE","Numeric"]
[51,"PCL-5 scale score (ASSESSMENT)","PCL5_SCALE_ASSESSMENT_SCORE","Numeric"]
[52,"SPIN scale score (ASSESSMENT)","SPIN_SCALE_ASSESSMENT_SCORE","Numeric"]
[53,"AUDIT-C score (ASSESSMENT)","AUDIT_C_ASSESSMENT_SCORE","Numeric"]
[54,"DUDIT score (ASSESSMENT)","DUDIT_ASSESSMENT_SCORE","Numeric"]
[55,"PSWQ scale score (ASSESSMENT)","PSWQ_ASSESSMENT_SCORE","Numeric"]
[56,"Main Problem descriptor (ASSESSMENT)","MAIN_PROBLEM_DES_ASSESSMENT_ID","Single value, please select one from the MAIN_PROGLEM_DESCRIPTOR table. E.g. the MAIN_PROGLEM_DESCRIPTOR_ID is 2 for Depression and low mood"]
[57,"OSPP enrollment date","ENROLLMENT_DATE","The data format is YYYYMMDD"]
[58,"Service Delivery Site","SITE_ID","Single value, please select one from the OSPP_ORG table. E.g. the SITE_ID for the site LOFT is 107"]
[59,"Treatment start date ","TREATMENT_START_DATE","The data format is YYYYMMDD"]
[60,"OSPP Service","MINDABILITY_SERVICE_ID","Single value, please select one from the OSPP_SERVICE table. E.g. the MINDABILITY_SERVICE_ID is 2 for BounceBack"]
[61,"Service Delivery Type","SERVICE_DELIVERY_TYPE_ID","If multiple values are needed for the data element “Service Delivery Type”,  each value needs to be separated with a delimiter semi-colon “;” and no spaces are allowed in between. (e.g. 1;2;3)"]
[62,"Linguistic/ culturally specific service","LING_CULT_SERVICE_ID","Single value, please select one from the LING_CULT_SERVICE table. E.g. the LING_CULT_SERVICE_ID is 1 for French language service if client is receiving a linguistic/culturally specific service"]
[63,"PHQ-9 score (TREATMENT)","PHQ9_TREATMENT_SCORE","Numeric"]
[64,"GAD-7 score (TREATMENT)","GAD7_TREATMENT_SCORE","Numeric"]
[65,"WSAS Score (TREATMENT)","WSAS_TREATMENT_SCORE","Numeric - The column name has been renamed from WSAS_SCORE to WSAS_TREATMENT_SCORE. Please map the historical WSAS score to this column."]
[66,"SHAI scale score (TREATMENT)","SHAI_SW_SCALE_TREATMENT_SCORE","Numeric"]
[{"$f":"A67+1","v":67},"OCI-R (modified) scale score (TREATMENT)","OCD_SCALE_TREATMENT_SCORE","Numeric"]
[68,"PDSS-SR scale score (TREATMENT)","PDSS_SR_SCALE_TREATMENT_SCORE","Numeric"]
[69,"PCL-5 (modified) scale score (TREATMENT)","PCL5_SCALE_TREATMENT_SCORE","Numeric"]
[70,"SPIN scale score (TREATMENT)","SPIN_SCALE_TREATMENT_SCORE","Numeric"]
[71,"AUDIT-C score (TREATMENT)","AUDIT_C_TREATMENT_SCORE","Numeric"]
[72,"DUDIT score  (TREATMENT)","DUDIT_TREATMENT_SCORE","Numeric"]
[73,"PSWQ scale score  (TREATMENT)","PSWQ_TREATMENT_SCORE","Numeric"]
[74,"PSWQ-PW scale score (TREATMENT)","PSWQ_PW_TREATMENT_SCORE","Numeric"]
[75,"Main Problem descriptor  (TREATMENT)","MAIN_PROBLEM_DES_TREATMENT_ID","Single value, please select one from the MAIN_PROGLEM_DESCRIPTOR table. E.g. the MAIN_PROGLEM_DESCRIPTOR_ID is 2 for Depression and low mood"]
[76,"Type of Treatment Model","TREATMENT_MODEL_TYPE","Single value, please select one from the TREATMENT_MODEL_TYPE table. E.g. the TREATMENT_MODEL_TYPE is 1 for Treatment-specific"]
[77,"Treatment completion date ","TREATMENT_COMPLETION_DATE","The data format is YYYYMMDD"]
[78,"Type of client hold","CLIENT_HOLD_TYPE1","Specify the reason for the client hold. This field is used for the first hold."]
[79,"Type of client hold","CLIENT_HOLD_TYPE2","Specify the reason for the client hold. This field is used for the second hold."]
[80,"Type of client hold","CLIENT_HOLD_TYPE3","Specify the reason for the client hold. This field is used for the third hold."]
[81,"Type of client hold","CLIENT_HOLD_TYPE4","Specify the reason for the client hold. This field is used for the fourth hold."]
[82,"Type of client hold","CLIENT_HOLD_TYPE5","Specify the reason for the client hold. This field is used for the fifth hold."]
[83,"Type of client hold","CLIENT_HOLD_TYPE6","Specify the reason for the client hold. This field is used for the sixth hold."]
[84,"Stage of client hold","CLIENT_HOLD_STAGE1","Specify what stage during the intake or treatment process was the client placed on hold. This field is used for the first hold."]
[85,"Stage of client hold","CLIENT_HOLD_STAGE2","Specify what stage during the intake or treatment process was the client placed on hold. This field is used for the second hold."]
[86,"Stage of client hold","CLIENT_HOLD_STAGE3","Specify what stage during the intake or treatment process was the client placed on hold. This field is used for the third hold."]
[87,"Stage of client hold","CLIENT_HOLD_STAGE4","Specify what stage during the intake or treatment process was the client placed on hold. This field is used for the fourth hold."]
[88,"Stage of client hold","CLIENT_HOLD_STAGE5","Specify what stage during the intake or treatment process was the client placed on hold. This field is used for the fifth hold."]
[89,"Stage of client hold","CLIENT_HOLD_STAGE6","Specify what stage during the intake or treatment process was the client placed on hold. This field is used for the sixth hold."]
[90,"Client hold start date","CLIENT_HOLD_START_DATE1","The data format is YYYYMMDD. This field is used for the first hold."]
[91,"Client hold start date","CLIENT_HOLD_START_DATE2","The data format is YYYYMMDD. This field is used for the second hold."]
[92,"Client hold start date","CLIENT_HOLD_START_DATE3","The data format is YYYYMMDD. This field is used for the third hold."]
[93,"Client hold start date","CLIENT_HOLD_START_DATE4","The data format is YYYYMMDD. This field is used for the fourth hold."]
[94,"Client hold start date","CLIENT_HOLD_START_DATE5","The data format is YYYYMMDD. This field is used for the fifth hold."]
[95,"Client hold start date","CLIENT_HOLD_START_DATE6","The data format is YYYYMMDD. This field is used for the sixth hold."]
[96,"Client hold end date","CLIENT_HOLD_END_DATE1","The data format is YYYYMMDD. This field is used for the first hold."]
[97,"Client hold end date","CLIENT_HOLD_END_DATE2","The data format is YYYYMMDD. This field is used for the second hold."]
[98,"Client hold end date","CLIENT_HOLD_END_DATE3","The data format is YYYYMMDD. This field is used for the third hold."]
[99,"Client hold end date","CLIENT_HOLD_END_DATE4","The data format is YYYYMMDD. This field is used for the fourth hold."]
[100,"Client hold end date","CLIENT_HOLD_END_DATE5","The data format is YYYYMMDD. This field is used for the fifth hold."]
[101,"Client hold end date","CLIENT_HOLD_END_DATE6","The data format is YYYYMMDD. This field is used for the sixth hold."]
[102,"Exit date","EXIT_DATE","The data format is YYYYMMDD"]
[103,"Stage of client exit or referral","CLIENT_EXIT_STAGE_ID","Single value, please select one from the CLIENT_EXIT_STAGE table. E.g. the CLIENT_EXIT_STAGE_ID is 3 for After start of treatment"]
[104,"Exit disposition","EXIT_DISPOSITION_ID","Single value, please select one from the EXIT_DISPOSITION table. E.g. the EXIT_DISPOSITION_ID is 1 for Completed- no referral"]
[105,"Ineligible due to","INELIGIBLE_REASON","If multiple values are needed for the data element “Ineligible due to”,  each value needs to be separated with the delimiter semi-colon “;” (e.g. 1;2;3)"]
[106,"Where was referral/service request made","REQUEST_MADE","Single value, please select one from the OSPP_ORG table. E.g. CAMH is 100 "]
[107,"Date referral/ service request was made","REQUEST_MADE_DATE","The data format is YYYYMMDD"]
[108,"Service Request ID- Outgoing","OUTGOING_REQUEST_ID","TEXT, the data format is OrgID_SiteID_XXXXXX (e.g. 100_101_123456)"]
[109,"If not accepted, was referral made?","HIST_REFERRAL_MADE","This column is specifically used for historical data for the data element #57 (If not accepted, was referral made?) documented in the previous version of IASP MDS . Single value, please enter 1 for Yes; 2 for No"]
[110,"Treatment cycle","HIST_TREATMENT_CYCLE","This column is specifically used for historical data for the data element #35 (Treatment cycle) documented in the previous version of IASP MDS . Single value for current cycle of treatment in IASP program at delivery site."]
[111,"MIA scale score","HIST_MIA_SCALE_SCORE","This column is specifically used for historical data for the data element #42 (MIA scale score) documented in the previous version of IASP MDS . Single value for score from completed MIA (Agoraphobia) scale."]
[112,"HAI-SW scale score","HIST_HAI_SW_SCALE_SCORE","This column is specifically used for historical data for the data element #43 (HAI-SW scale score) documented in the previous version of IASP MDS . Single value, Score from completed HAI-SW (Health Anxiety) scale."]
[113,"SPQ scale score ","HIST_SPQ_SCALE_SCORE","This column is specifically used for historical data for the data element #58 (SPQ scale score ) documented in the previous version of IASP MDS . Single value, SPQ scale score."]
[114,"Severity Measure for Specific Phobia- Adult Scale score ","HIST_SPQ_ADULT_SCALE_SCORE","This column is specifically used for historical data for the data element #59 (Severity Measure for Specific Phobia- Adult Scale score ) documented in the previous version of IASP MDS . Single value, Severity Measure for Specific Phobia- Adult Scale score."]

{"sheet":"OSPP_ORG","index":6,"n_rows":184,"n_cols":6,"rows_kept":184,"cut":false,"hidden":false,"merged":[]}
["SITE_ID","SITE_NAME","ORG_ID","ORG_NAME","ACTIVE","Anticipated Date (MM/DD/YYYY) of Service Delivery (if known)"]
[0,"Non- OSPP service",0,"Non- OSPP service","Y"]
[100,"CAMH",100,"CAMH","Y"]
[101,"CAMH Mood and Anxiety Ambulatory Services",100,"CAMH","Y"]
[102,"Taddle Creek Family Health Team",100,"CAMH","Y"]
[103,"Davenport Perth Community Health Centre",100,"CAMH","N"]
[104,"Waasegiizhig Health Access Centre",100,"CAMH","N"]
[105,"North Bay Practitioner Led Clinic",100,"CAMH","N"]
[106,"Women’s Health in Women’s Hands",100,"CAMH","Y"]
[107,"LOFT",100,"CAMH","N"]
[108,"Woodgreen",100,"CAMH","N"]
[109,"…",100,"CAMH","N"]
[110,"University of Toronto ",100,"CAMH","N"]
[111,"Village Family Health Team",100,"CAMH","Y"]
[112,"COTA",100,"CAMH","N"]
[113,"CAMH - Child & Youth",100,"CAMH","Y"]
[114,"CAMH - IDT",100,"CAMH","Y"]
[115,"CAMH - COMPASS",100,"CAMH","Y"]
[116,"LOFT - 416 Community Support ",100,"CAMH","N"]
[117,"LOFT - Transitional Aged Youth",100,"CAMH","N"]
[118,"U of T - Scarborough",100,"CAMH","Y"]
[119,"U of T - St. George",100,"CAMH","Y"]
[120,"U of T - Mississauga",100,"CAMH","Y"]
[121,"Four Villages - Bloor  ",100,"CAMH","Y"]
[122,"Four Villages - Dundas",100,"CAMH","Y"]
[123,"Holland Bloorview",100,"CAMH","Y"]
[130,"Catholic Family Service of Toronto",100,"CAMH","Y"]
[200,"Ontario Shores",200,"Ontario Shores","Y"]
[201,"Durham College",200,"Ontario Shores","Y"]
[202,"Brooklin Medical Centre",200,"Ontario Shores","Y"]
[203,"North Oshawa Medical Centre",200,"Ontario Shores","Y"]
[204,"CMHA NP Led Clinic",200,"Ontario Shores","Y"]
[205,"North Durham FHT",200,"Ontario Shores","Y"]
[206,"Peterborough FHT",200,"Ontario Shores","Y"]
[207,"Humber River FHT",200,"Ontario Shores","Y"]
[208,"Vaughan CHC",200,"Ontario Shores","Y"]
[209,"Emery Keelesdale NP Led Clinic",200,"Ontario Shores","Y"]
[210,"Brock CHC",200,"Ontario Shores","Y"]
[211,"TAIBU CHC",200,"Ontario Shores","Y"]
[212,"Nogojiwanong Friendship Centre",200,"Ontario Shores","N"]
[213,"Curve Lake First Nations",200,"Ontario Shores","Y"]
[214,"Alderville First Nation",200,"Ontario Shores","N"]
[215,"Seneca College - Newham Campus",200,"Ontario Shores","Y"]
[216,"York University",200,"Ontario Shores","Y"]
[217,"Fleming College",200,"Ontario Shores","N"]
[218,"Trent University - Peterborough",200,"Ontario Shores","Y"]
[219,"Ontario Tech University – North",200,"Ontario Shores","Y"]
[220,"Across Boundaries",200,"Ontario Shores","Y"]
[221,"CMHA York and South Simcoe",200,"Ontario Shores","Y"]
[222,"CMHA Toronto",200,"Ontario Shores","Y"]
[223,"Toronto North Support Services",200,"Ontario Shores","Y"]
[224,"York Support Services Network/ASYR",200,"Ontario Shores","N"]
[225,"Loft Community Services",200,"Ontario Shores","Y"]
[226,"Catholic Family Services",200,"Ontario Shores","N"]
[227,"Northumberland Community Counselling",200,"Ontario Shores","N"]
[228,"Matthews House Hospice",200,"Ontario Shores","N"]
[229,"Carefirst Seniors and Community Services",200,"Ontario Shores","Y"]
[230,"Agincourt Community Services Assoc.",200,"Ontario Shores","Y"]
[231,"Grandview Children's Centre",200,"Ontario Shores","N"]
[232,"Community Care Durham - Whitby",200,"Ontario Shores","Y"]
[233,"Prompt Care Clinic",200,"Ontario Shores","Y"]
[234,"N/A",200,"Ontario Shores","N"]
[235,"Not a Partner Site",200,"Ontario Shores","Y"]
[236,"Centre for Complex Diabetes Care at North York General Hospital",200,"Ontario Shores","N"]
[237,"Circle of Care",200,"Ontario Shores","Y"]
[238,"Welcome Centre Immigrant Services – Richmond Hill",200,"Ontario Shores","N"]
[239,"Trent University- Durham",200,"Ontario Shores","N"]
[240,"Ontario Tech University - Downtown",200,"Ontario Shores","Y"]
[241,"Alderville First Nation",200,"Ontario Shores","Y"]
[242,"Hiawatha First Nation",200,"Ontario Shores","Y"]
[243,"BounceBack",200,"Ontario Shores","Y"]
[244,"Community Care City of Kawartha Lakes",200,"Ontario Shores","Y"]
[245,"Northumberland Hills Hospital",200,"Ontario Shores","Y"]
[246,"Community Care Durham – Clarington",200,"Ontario Shores","Y"]
[247,"Thorncliffe Park",200,"Ontario Shores","Y"]
[248,"Queen's University",200,"Ontario Shores","Y"]
[249,"Addiction and Mental Health",200,"Ontario Shores","Y"]
[250,"Lakeridge Health / ORN",200,"Ontario Shores","Y"]
[252,"Youth Habilitation Quinte",200,"Ontario Shores","Y"]
[253,"U of T Scarborough",200,"Ontario Shores","Y"]
[254,"Providence Care ",200,"Ontario Shores","Y"]
[255,"Tsi Ilpct ",200,"Ontario Shores","Y"]
[300,"The Royal",300,"The Royal","Y"]
[301,"Family Services Ottawa",300,"The Royal","Y"]
[302,"Hawkesbury and District General Hospital",300,"The Royal","Y"]
[303,"Sandy Hill Community Health Centre",300,"The Royal","Y"]
[304,"CMHA-Ottawa",300,"The Royal","Y"]
[305,"Royal Ottawa Health Care Group",300,"The Royal","Y"]
[306,"Pembroke Regional Hospital",300,"The Royal","Y"]
[307,"Cornwall Community Hospital",300,"The Royal","Y"]
[308,"Montfort Academic Family Health Team",300,"The Royal","N"]
[309,"Monfort Hospital",300,"The Royal","Y"]
[310,"ConnectWell Community Health",300,"The Royal","Y"]
[311,"Jewish Family Services",300,"The Royal","Y"]
[312,"City of Ottawa Social Service Centre (Central, East, West, South)- ESSP",300,"The Royal","Y"]
[313,"Causeway Work Centre- ESSP",300,"The Royal","Y"]
[314,"Performance Plus Rehabilitative Care- ESSP",300,"The Royal","Y"]
[315,"Addictions and Mental Health Services - Kingston Frontenac Lennox & Addington (AMHS-KFLA)",300,"The Royal","Y"]
[316,"Rideau Community Health Services (RCHS)",300,"The Royal","Y"]
[400,"Waypoint",400,"Waypoint","Y"]
[401,"Chigamik Community Health Centre",400,"Waypoint","Y"]
[402,"North Simcoe Family Health Team",400,"Waypoint","N"]
[403,"Enaahtig Healing Lodge and Learning Centre",400,"Waypoint","N"]
[404,"Waypoint's Outpatient Services",400,"Waypoint","Y"]
[406,"Huronia NP-Led Clinic",400,"Waypoint","Y"]
[407,"Orillia - Catholic Family Services of Simcoe County",400,"Waypoint","Y"]
[409,"Algonquin Family Health Team",400,"Waypoint","N"]
[410,"Cottage Country Family Health Team",400,"Waypoint","Y"]
[411,"North Muskoka NP-Led Clinic",400,"Waypoint","N"]
[413,"Georgian Bay Family Health Team - Collingwood",400,"Waypoint","Y"]
[415,"Barrie Community Health Centre",400,"Waypoint","Y"]
[416,"Barrie and Area Family Health Team",400,"Waypoint","Y"]
[418,"Mamaway Wiidokdaadwin Inter-Professional Primary Care Team",400,"Waypoint","Y"]
[419,"Barrie - Catholic Family Services of Simcoe County",400,"Waypoint","Y"]
[421,"Couchiching Family Health Team",400,"Waypoint","Y"]
[422,"Georgian College – Orillia",400,"Waypoint","Y"]
[423,"Lakehead University – Orillia",400,"Waypoint","Y"]
[424,"CMHA Muskoka Parry Sound – Bracebridge ",400,"Waypoint","Y"]
[425,"CMHA Muskoka Parry Sound – Huntsville ",400,"Waypoint","Y"]
[426,"CMHA Muskoka Parry Sound – B’saanibamaadsiwin ",400,"Waypoint","Y"]
[427,"CMHA Muskoka Parry Sound – Sundridge",400,"Waypoint","Y"]
[428,"South Georgian Bay Community Health Centre – Wasaga Beach",400,"Waypoint","Y"]
[429,"South Georgian Bay Community Health Centre – Elmvale",400,"Waypoint","Y"]
[430,"CMHA Simcoe County - Innisfil",400,"Waypoint","Y"]
[431,"CMHA Simcoe County – Bradford ",400,"Waypoint","Y"]
[432,"Georgian NP-Led Clinic",400,"Waypoint","Y"]
[433,"Georgian Student Access Centre ",400,"Waypoint","Y"]
[434,"Mamaway – Beausoleil First Nation ",400,"Waypoint","Y"]
[435,"Float Therapists",400,"Waypoint","Y"]
[436,"Dufferin Area Family Health Team - Shelburne Centre for Health",400,"Waypoint","Y"]
[437,"CMHA Peel Dufferin - Waypoint ",400,"Waypoint","Y"]
[438,"Georgian College - Orangeville",400,"Waypoint","Y"]
[439,"CMHA Muskoka Parry Sound - Parry Sound",400,"Waypoint","Y"]
[500,"CMHA-YSS (BounceBack & CAB)",500,"CMHA-YSS (BounceBack & CAB)","Y"]
[501,"BounceBack",500,"CMHA-YSS (BounceBack & CAB)","Y"]
[502,"Across Boundaries",500,"CMHA-YSS (BounceBack & CAB)","Y"]
[503,"Hong Fook ",500,"CMHA-YSS (BounceBack & CAB)","Y"]
[600,"Morneau-Shepell (COVID-19) ",600,"Morneau-Shepell (COVID-19) ","Y"]
[700,"BEACON (COVID-19)",700,"MindBeacon (iCBT)","Y"]
[800,"CarePoint Health",800,"CarePoint Health","Y"]
[801,"CMHA Peel Dufferin",800,"CarePoint Health","Y"]
[802,"Queen Square FHT",800,"CarePoint Health","Y"]
[803,"Punjabi Community Health Services",800,"CarePoint Health","Y"]
[804,"CMHA Halton",800,"CarePoint Health","Y"]
[805,"WP-BHM",800,"CarePoint Health","Y"]
[900,"HSN Sudbury",900,"Health Sciences North","Y"]
[901,"SDS - HSN Sudbury",900,"Health Sciences North","Y"]
[902,"SDS - HSN Espanola ",900,"Health Sciences North","Y"]
[903,"SDS - HSN Manitoulin ",900,"Health Sciences North","Y"]
[905,"Algoma Family Services ",900,"Health Sciences North","Y"]
[906,"Maamwesying ",900,"Health Sciences North","Y"]
[907,"Timmins and District Hospital ",900,"Health Sciences North","Y"]
[908,"CMHA-Timiskaming Branch",900,"Health Sciences North","Y"]
[909,"Community Counseling Centre Nipissing ",900,"Health Sciences North","Y"]
[910,"Weeneebayko Area Health Authority (WAHA)",900,"Health Sciences North","Y"]
[911,"HKS Counselling Services",900,"Health Sciences North","Y"]
[1000,"St Joseph's Care Group, Thunder Bay",1000,"St Joseph's Care Group, Thunder Bay","Y"]
[1001,"St Joseph's Care Group, Behavioural Science Centre",1000,"St Joseph's Care Group, Thunder Bay","Y"]
[1002,"Dilico Anishinabek Family Care",1000,"St Joseph's Care Group, Thunder Bay","Y"]
[1003,"Thunder Bay Counselling Centre",1000,"St Joseph's Care Group, Thunder Bay","Y"]
[1004,"Canadian Mental Health Association, Kenora Branch",1000,"St Joseph's Care Group, Thunder Bay","Y"]
[1005,"Canadian Mental Health Association, Fort Frances Branch",1000,"St Joseph's Care Group, Thunder Bay","Y"]
[1006,"Norwest Community Health Centres",1000,"St Joseph's Care Group, Thunder Bay","Y"]
[1007,"North of Superior Counselling Program",1000,"St Joseph's Care Group, Thunder Bay","Y"]
[1008,"Riverside Health Care Facility-Mental Health and Addictions",1000,"St Joseph's Care Group, Thunder Bay","Y"]
[1100,"OSP West",1100,"Ontario West (London/Hamilton)","Y"]
[1106,"Grey Bruce Health Services",1100,"Ontario West (London/Hamilton)","Y"]
[1105,"Willowbridge Community Services Inc",1100,"Ontario West (London/Hamilton)","Y"]
[1107,"Carizon Family and Community Services",1100,"Ontario West (London/Hamilton)","Y"]
[1108,"Hamilton Family Health Team ",1100,"Ontario West (London/Hamilton)","Y"]
[1109,"Canadian Mental Health Association Thames Valley Addiction and Mental Health Services (CMHA TVAMHS)",1100,"Ontario West (London/Hamilton)","Y"]
[1110,"Windsor Family Health Team  / Family Service Windsor Essex",1100,"Ontario West (London/Hamilton)","Y"]
[1111,"Compass Community Services",1100,"Ontario West (London/Hamilton)","Y"]
[1112,"CMHA Thames Valley Addiction and Mental Health Services ",1100,"Ontario West (London/Hamilton)","Y"]
[1113,"CMHA Thames Valley Addiction and Mental Health Services ",1100,"Ontario West (London/Hamilton)","Y"]
[1114,"Canadian Mental Health Association, Lambton Kent Branch",1100,"Ontario West (London/Hamilton)","Y"]
[1115,"Canadian Mental Health Association, Niagara Branch",1100,"Ontario West (London/Hamilton)","Y"]
[1116,"Chatham Kent Health Alliance (CKHA), Mental Health and Addictions Program (MHAP)",1100,"Ontario West (London/Hamilton)","Y"]
[1117,"Canadian Mental Health Association – Halton Region Branch.  ",1100,"Ontario West (London/Hamilton)","Y"]
[1200,"Tranquility (iCBT)",1200,"Tranquility (iCBT)","Y"]
[1300,"CMHA-YSS (NLO)",1300,"CMHA-YSS (NLO)","Y"]
[1301,"CMHA- YSS ",1300,"CMHA- YSS (NLO)","Y"]
[1302,"Across Boundaries",1300,"CMHA- YSS (NLO)","Y"]
[1303,"Hong Fook",1300,"CMHA- YSS (NLO)","Y"]

{"sheet":"REFERRAL_TYPE","index":7,"n_rows":7,"n_cols":2,"rows_kept":7,"cut":false,"hidden":false,"merged":[]}
["REFERRAL_TYPE_ID","REFERRAL_TYPE"]
[1,"Referral to OSPP"]
[2,"Service request within OSPP -Triage Assessment Decision"]
[3,"Service request within OSPP - Client Stepping Up"]
[4,"Service request within OSPP- Client Stepping Down"]
[5,"Service request within OSPP-   Other reason"]
[6,"Referral  to OSPP - client stepping up  from COVID iCBT"]

{"sheet":"ELIGIBILITY_OUTCOME","index":8,"n_rows":5,"n_cols":2,"rows_kept":5,"cut":false,"hidden":false,"merged":[]}
["INITIAL_SCREENING_OUTCOME","INITIAL_SCREENING_OUTCOME_DESC"]
[1,"Eligible for Clinical Intake and Triage Assessment or Mental Health Assessment"]
[2,"Ineligible"]
[3,"Eligible for Treatment (No Triage)"]
[4,"Other, none of the above"]

{"sheet":"REFERRAL_SOURCE","index":9,"n_rows":10,"n_cols":2,"rows_kept":10,"cut":false,"hidden":false,"merged":[]}
["REFERRAL_SOURCE_ID","Referral Source Type"]
[1,"Family physician"]
[2,"Nurse Practitioner"]
[3,"Psychiatrist"]
[4,"Other clinician"]
[5,"Self-referral"]
[6,"Psychologist"]
[7,"Scoial Worker"]
[8,"COVID-19 Program – Health Care Worker"]
[77,"Other, none of the above"]

{"sheet":"MAIN_SPOKEN_LANGUAGE","index":10,"n_rows":39,"n_cols":10,"rows_kept":39,"cut":false,"hidden":false,"merged":[]}
["Main Spoken Language_ID","Main Spoken Language"]
[1,"Amharic"]
[2,"Arabic"]
[3,"ASL"]
[4,"Bengali"]
[5,"Chinese -Cantonese"]
[6,"Chinese-Mandarin"]
[7,"Czech"]
[8,"Dari"]
[9,"English"]
[10,"Farsi"]
[11,"French"]
[12,"Greek"]
[13,"Hindi"]
[14,"Hungarian"]
[15,"Italian"]
[16,"Karen"]
[17,"Korean"]
[18,"Nepali"]
[19,"Polish"]
[20,"Portuguese"]
[21,"Punjabi"]
[22,"Russian"]
[23,"Serbian"]
[24,"Slovak"]
[25,"Somali",null,null,null,null,null,null,null,{"$f":"UPPER(I26)","v":""}]
[26,"Spanish"]
[27,"Tagalog"]
[28,"Tamil"]
[29,"Tigrinya"]
[30,"Turkish"]
[31,"Twi"]
[32,"Ukrainian"]
[33,"Urdu"]
[34,"Vietnamese"]
[35,"Inuktitut"]
[77,"Other, none of the above"]
[88,"Prefer not to answer"]
[99,"Do not know"]

{"sheet":"GENDER","index":11,"n_rows":11,"n_cols":2,"rows_kept":11,"cut":false,"hidden":false,"merged":[]}
["GENDER_ID","GENDER"]
[1,"Man"]
[2,"Woman"]
[3,"Trans Man"]
[4,"Trans Woman"]
[5,"Intersex"]
[6,"Two-Spirit"]
[7,"Non-binary"]
[77,"Other, none of the above"]
[88,"Prefer not to answer"]
[99,"Do not know"]

{"sheet":"SEXUAL_ORIENTATION","index":12,"n_rows":10,"n_cols":2,"rows_kept":10,"cut":false,"hidden":false,"merged":[]}
["SEX_ORIENTATION_ID","SEX_ORIENTATION"]
[1,"Bisexual"]
[2,"Gay"]
[3,"Heterosexual"]
[4,"Lesbian"]
[5,"Queer"]
[6,"Two-Spirit"]
[77,"Other, none of the above"]
[88,"Prefer not to answer"]
[99,"Do not know"]

{"sheet":"ETHNICITY","index":13,"n_rows":20,"n_cols":2,"rows_kept":20,"cut":false,"hidden":false,"merged":[]}
["ETHNICITY_ID","ETHNICITY"]
[1,"Asian – East"]
[2,"Asian – South"]
[3,"Asian – South East"]
[4,"Black – African"]
[5," Black – Caribbean"]
[6,"Black – North American"]
[7,"First Nations"]
[8,"Indian – Caribbean"]
[9,"Indigenous / Aboriginal"]
[10," Inuit"]
[11," Latin American"]
[12," Métis"]
[13," Middle Eastern"]
[14,"White – European"]
[15,"White – North American"]
[16," Mixed heritage"]
[77,"Other, none of the above "]
[88,"Prefer not to answer"]
[99,"Do not know"]

{"sheet":"WORK_STATUS","index":14,"n_rows":10,"n_cols":2,"rows_kept":10,"cut":false,"hidden":false,"merged":[]}
["WORK_STATUS_ID","WORK_STATUS"]
[1,"Employed full-time"]
[2,"Employed part-time"]
[3,"Unemployed"]
[4,"Retired"]
[5,"Full-time homemaker or carer"]
[6,"Employed- On Leave"]
[77,"Other, none of the above "]
[88,"Prefer not to answer"]
[99,"Do not know"]

{"sheet":"STUDENT_STATUS","index":15,"n_rows":7,"n_cols":2,"rows_kept":7,"cut":false,"hidden":false,"merged":[]}
["STUDENT_STATUS_ID","STUDENT_STATUS"]
[1,"Full-time student"]
[2,"Part-time student"]
[3,"Not currently a student"]
[77,"Other, none of the above "]
[88,"Prefer not to answer"]
[99,"Do not know"]

{"sheet":"FAMILY_INCOME","index":16,"n_rows":10,"n_cols":2,"rows_kept":10,"cut":false,"hidden":false,"merged":[]}
["FAMILY_INCOME_ID","FAMILY_INCOME"]
[1,"$0 - $29,999"]
[2,"$30,000 – $59,999"]
[3,"$60,000 – $89,999"]
[4,"$90,000 – $119,999"]
[5,"$120,000 – $149,999"]
[6,"$150,000 or more"]
[77,"Other, none of the above "]
[88,"Prefer not to answer"]
[99,"Do not know"]

{"sheet":"HEALTH_STATUS","index":17,"n_rows":12,"n_cols":2,"rows_kept":12,"cut":false,"hidden":false,"merged":[]}
["HEALTH_STATUS_ID","HEALTH_STATUS"]
[1,"Chronic Illness"]
[2,"Developmental Disability"]
[3,"Drug or Alcohol  Dependence"]
[4,"Learning Disability"]
[5,"Mental Illness"]
[6,"Physical Disability"]
[7,"Sensory Disability"]
[8,"None"]
[77,"Other, none of the above "]
[88,"Prefer not to answer"]
[99,"Do not know"]

{"sheet":"SESSION_TYPE","index":18,"n_rows":15,"n_cols":2,"rows_kept":15,"cut":false,"hidden":false,"merged":[]}
["SESSION_TYPE_ID","SESSION_TYPE"]
[1,"Triage or Mental Health Assessment"]
[2,"Treatment"]
[3,"Planned final treatment session"]
[4,"Joint – Meeting (ESSP)"]
[5,"CMHA-YSS BounceBack Screening (2.0) Assessment "]
[6,"Triage at Screening (NLO)"]
[7,"Synchronous Session"]
[8,"0-24% of playlists/modules completed"]
[9,"25-49% of playlists/modules completed"]
[10,"50-74% of playlists/modules completed"]
[11,"75-99% of playlists/modules completed"]
[12,"100% of playlists/modules completed"]
[77,"Other, none of the above"]
[999,"Missing"]

{"sheet":"SESSION_ATTENDANCE","index":19,"n_rows":6,"n_cols":2,"rows_kept":6,"cut":false,"hidden":false,"merged":[]}
["SESSION_ATTENDANCE_ID","SESSION_ATTENDANCE"]
[1,"Held- Session was held"]
[2,"Not Held- Missed (no notice)"]
[3,"Not Held- Client Cancelled (less than 24 hour noticed)"]
[4,"Not Held- Client Cancelled (more than 24 hour notice)"]
[5,"Not Held- Clinican Cancelled"]

{"sheet":"TRIAGE_SERVICE_RECOMMENDATION","index":20,"n_rows":8,"n_cols":2,"rows_kept":8,"cut":false,"hidden":false,"merged":[]}
["TRIAGE_SERVICE_RECOMMENDATION_ID","TRIAGE_SERVICE_RECOMMENDATION"]
[1,"Higher intensity service"]
[2,"Lower intensity service"]
[3,"Lower intensity service – iCBT COVID-19"]
[4,"Lower intensity service – BounceBack "]
[5,"Lower intensity service - CAB "]
[6,"Lower intensity service - iCBT (MindBeacon)"]
[7,"Lower intensity service - iCBT (Tranquility)"]

{"sheet":"TRIAGE_DECISION_REASON","index":21,"n_rows":15,"n_cols":2,"rows_kept":15,"cut":false,"hidden":false,"merged":[]}
["TRIAGE_DECISION_REASON_ID","TRIAGE_DECISION_REASON"]
[1,"Severity of symptoms"]
[2,"History of suicide attempts"]
[3,"Language preferences"]
[4,"Client ability"]
[5,"Service availability in region"]
[6,"Client availability"]
[7,"Main problem descriptor alignment"]
[8,"Client preference"]
[9,"Client education/ reading level"]
[10,"Appropriateness of service"]
[11,"Transportation needs"]
[12,"Child care needs"]
[13,"Technology considerations"]
[77,"Other, none of the above"]

{"sheet":"MAIN_PROBROM_DESCRIPTOR","index":22,"n_rows":12,"n_cols":2,"rows_kept":12,"cut":false,"hidden":false,"merged":[]}
["MAIN_PROBLEM_DESCRIPTOR_ID","MAIN_PROBLEM_DESCRIPTOR"]
[1,"Agoraphobia"]
[2,"Depression and low mood"]
[3,"Generalized anxiety and worry"]
[4,"Health Anxiety"]
[5,"Obsessive-compulsive concerns"]
[6,"Panic Disorder"]
[7,"Posttraumatic Stress"]
[8,"Social anxiety and performance fears"]
[9,"Specific fears"]
[10,"Other anxiety and stress related problems"]
[11,"Unexpected panic attacks and agoraphobic fears"]

{"sheet":"OSPP_SERVICE","index":23,"n_rows":9,"n_cols":2,"rows_kept":9,"cut":false,"hidden":false,"merged":[]}
["MINDABILITY_SERVICE_ID","MINDABILITY_SERVICE"]
[1,"Higher intensity: Individual or Group Psychotherapy "]
[2,"BounceBack"]
[3,"iCBT"]
[4,"Clinician-guided bibliotherapy"]
[5,"ESSP"]
[6,"GBV"]
[7,"Psychoeducation "]
[77,"Other OSPP service, none of the above"]

{"sheet":"SERVICE_DELIVERY_TYPE","index":24,"n_rows":11,"n_cols":2,"rows_kept":11,"cut":false,"hidden":false,"merged":[]}
["SERVICE_DELIVERY_TYPE_ID","SERVICE_DELIVERY_TYPE"]
[1,"Group (in person)"]
[2,"Individual (in person)"]
[3,"Group (OTN)"]
[4,"Individual (OTN)"]
[5,"iCBT"]
[6,"Individual  Videoconference  - Non-OTN"]
[7,"Telephone "]
[8,"Internet-based therapy"]
[9,"Group  Videoconference  - Non-OTN "]
[77,"Other, none of the above"]

{"sheet":"LING_CULT_SERVICE","index":25,"n_rows":7,"n_cols":2,"rows_kept":7,"cut":false,"hidden":false,"merged":[]}
["LING_CULT_SERVICE_ID","LING_CULT_SERVICE"]
[1,"French language service"]
[2,"Spanish language service"]
[3,"First Nations specific service"]
[4,"Inuit specific service"]
[5,"Métis specific service"]
[77,"Other, none of the above"]

{"sheet":"TREAT_MODEL_TYPE","index":26,"n_rows":5,"n_cols":2,"rows_kept":5,"cut":false,"hidden":false,"merged":[]}
["TREATMENT_MODEL_TYPE_ID","TREATMENT_MODEL_TYPE"]
[1,"Treatment-specific"]
[2,"Transdiagnostic model: Unified Protocol"]
[3,"Transdiagnostic model: Norton Model"]
[4,"Transdiagnostic model: Other, none of the above"]

{"sheet":"CLIENT_HOLD_TYPE","index":27,"n_rows":6,"n_cols":2,"rows_kept":6,"cut":false,"hidden":false,"merged":[]}
["CLIENT_HOLD_TYPE_ID","CLIENT_HOLD_TYPE"]
[1,"On Hold - Client choice"]
[2,"On Hold - Psychiatric Assessment"]
[3,"On Hold- Psychological Assessment "]
[4,"On Hold- COVID-19"]
[77,"Other, none of the above"]

{"sheet":"CLIENT_HOLD_STAGE","index":28,"n_rows":3,"n_cols":2,"rows_kept":3,"cut":false,"hidden":false,"merged":[]}
["CLIENT_HOLD_STAGE_ID","CLIENT_HOLD_STAGE"]
[1,"Clinical Intake and Triage Assessment or Mental Health Assessment "]
[2,"After start of treatment"]

{"sheet":"CLIENT_EXIT_STAGE","index":29,"n_rows":8,"n_cols":2,"rows_kept":8,"cut":false,"hidden":false,"merged":[]}
["CLIENT_EXIT_STAGE_ID","CLIENT_EXIT_STAGE"]
[1,"At referral"]
[2,"Clinical Intake and Triage Assessment or Mental Health Assessment"]
[3,"After start of treatment"]
[4,"Before initial eligibility screen  "]
[5,"After initial eligibility screen and before Triage or Mental Health Assessment "]
[6,"At Triage or Mental Health Assessment and before enrollment"]
[7,"After enrollment and before start of treatment"]

{"sheet":"EXIT_DISPOSITION","index":30,"n_rows":12,"n_cols":2,"rows_kept":12,"cut":false,"hidden":false,"merged":[]}
["EXIT_DISPOSITION_ID","EXIT_DISPOSITION"]
[1,"Completed- no referral"]
[2,"Completed- with referral"]
[3,"Not completed- Ineligible"]
[4,"Not completed- Withdrawal"]
[5,"Not completed- Relocation"]
[6,"Not completed- Hospitalized"]
[7,"Not completed- Suicide"]
[8,"Not completed- Death"]
[9,"Not completed- Could not contact client"]
[10,"Not completed – Referral/Service Request made to more appropriate OSPP service"]
[11,"Not completed – Treatment terminated by program/service provider"]

{"sheet":"INELIGIBLE_REASON","index":31,"n_rows":14,"n_cols":2,"rows_kept":14,"cut":false,"hidden":false,"merged":[]}
["INELIGIBLE_REASON_ID","INELIGIBLE_REASON"]
[1,"Does not meet cut off scores on GAD 7 or PHQ9"]
[2,"Suicidal"]
[3,"Risk to self/others"]
[4,"Psychosis"]
[5,"Personality disorder"]
[6,"Requested only medication management"]
[7,"Intellectual or  developmental disability"]
[8,"Dementia"]
[9,"Substance use"]
[10,"Eating disorder"]
[11,"Does not meet severity cutoffs for services"]
[12,"Mania/Hypomania"]
[77,"Other, none of the above"]